Workbook

Sheet informe 1
B2: Americatel Perú S.A.
B3: Informe 1: Reconciliación del estado de la situación financiera auditado con el de contabilidad separada
B4: Al 31 de diciembre de 2018
B6: Expresado en Miles de Nuevos Soles | C6: Código plan contable | D6: Código PCR | E6: Estado de Situación Financiera Estatutaria | F6: Ajustes | G6: Estado de Situación Financiera de Contabilidad Separada | H6: Nota
B7: ACTIVO CORRIENTE | E7: 40807.90131 | F7: -1925.26193 | G7: =+E7+F7 -> 38882.63938
B8: Efectivo y equivalentes al efectivo | D8: 10 | E8: 6892.07225 | F8: 0 | G8: =+E8+F8 -> 6892.07225 | H8: 3
B9: Cuentas por cobrar comerciales | D9: 12 | E9: 14368.88843 | F9: -1586.27996 | G9: 12782.60847 | H9: 3
B10: Cuentas por cobrar comerciales relacionadas | D10: 13 | E10: 11728.40153 | G10: 11728.40153 | H10: 3
B11: Otras cuentas por cobrar | D11: 16 | E11: 4161.33401 | F11: -338.98197 | G11: 3822.35204 | H11: 3
B12: Suministros | D12: 20 | E12: 0 | F12: 0 | G12: 0 | H12: 3
B13: Gastos pagados por anticipado | D13: 18 | E13: 3657.20509 | F13: 0 | G13: 3657.20509 | H13: 3
B14: Impuestos por recuperar | D14: 16 | E14: 0 | F14: 0 | G14: 0 | H14: 3
B16: ACTIVO NO CORRIENTE | E16: 158235.9089 | F16: -23520.54681 | G16: =+E16+F16 -> 134715.3621
B17: Activo Fijo Bruto | D17: 30 | E17: 266644.3317 | F17: 21644.42651 | G17: 288288.7583 | H17: 3
B18: Planta y Equipo de Comunicaciones | D18: 301 | E18: 234166.3352 | F18: 25299.91922 | G18: 259466.2544 | H18: 3
B19: Equipos terminales | D19: 3011 | E19: 28463.17523 | F19: -83.77751908 | G19: 28379.39771 | H19: 3
B20: Equipos terminales -Teléfonos de Abonados | D20: 30111 | E20: 5010.45632 | F20: -20.69483281 | G20: 4989.761487 | H20: 3
B21: Equipos terminales -Teléfonos Públicos | D21: 30112 | E21: 154.19929 | F21: 0 | G21: 154.19929 | H21: 3
B22: Equipos Terminales -Televisión de Paga | D22: 30113 | E22: 0 | F22: 0 | G22: 0 | H22: 3
B23: Equipos Terminales -Internet Fijo | D23: 30114 | E23: =19216.7872899999 -> 19216.78729 | F23: =-63.0826862635885 -> -63.08268626 | G23: 19153.7046 | H23: 3
B24: Equipos Terminales -Telefonía Móvil | D24: 30115 | E24: 0 | F24: 0 | G24: 0 | H24: 3
B25: Equipos Terminales -Internet Móvil | D25: 30116 | E25: 0 | F25: 0 | G25: 0 | H25: 3
B26: Otros Equipos Terminales | D26: 30117 | E26: 4081.73233 | F26: 0 | G26: 4081.73233 | H26: 3
B27: Planta y Equipo de Acceso Local | D27: 3012 | E27: =103659.425840008-1470.82508000001+23600.73329 -> 125789.3341 | F27: =7825.22995255475-750.186003522947-23600.73329 -> -16525.68934 | G27: 109263.6447 | H27: 3
B28: Equipos Centrales y de agregación | D28: 3013 | E28: 36387.16964 | F28: 3460.135062 | G28: 39847.3047 | H28: 3
B29: Centrales Locales | D29: 30131 | E29: 12839.97291 | F29: 1425.207556 | G29: 14265.18047 | H29: 3
B30: Centrales de Larga Distancia Nacional | D30: 30132 | E30: 0 | F30: 0 | G30: 0 | H30: 3
B31: Centrales de Larga Distancia Internacional | D31: 30133 | E31: 3867.14635 | F31: 465.8766588 | G31: 4333.023009 | H31: 3
B32: Controladores | D32: 30134 | E32: 64.1339 | F32: 5.967863908 | G32: 70.10176391 | H32: 3
B33: Gateways | D33: 30135 | E33: 10124.39205 | F33: 856.1996694 | G33: 10980.59172 | H33: 3
B34: Cabeceras | D34: 30136 | E34: 0 | F34: 0 | G34: 0 | H34: 3
B35: Transmisión de Datos (Servicio Final) | D35: 30137 | E35: 9491.52443 | F35: 706.8833137 | G35: 10198.40774 | H35: 3
B36: Otros equipos centrales | D36: 30138 | E36: 0 | F36: 0 | G36: 0 | H36: 3
B37: Transmisión (Gran capacidad) | D37: 3014 | E37: 19467.56612 | F37: 1467.038461 | G37: 20934.60458 | H37: 3
B38: Cables de Transmisión (excluidos internacional) | D38: 30141 | E38: 18617.73625 | F38: 1450.902172 | G38: 20068.63842 | H38: 3
B39: Equipos de Transmisión (excluidos internacional) | D39: 30142 | E39: 591.01021 | F39: -4.979690548 | G39: 586.0305195 | H39: 3
B40: Equipos de Transmisión Radio | D40: 30143 | E40: 96.49956 | F40: 4.778027401 | G40: 101.2775874 | H40: 3
B41: Equipos de Transmisión por Satélite | D41: 30144 | E41: 0 | F41: 0 | G41: 0 | H41: 3
B42: Cables y Equipos internacionales (excluyendo satélite) | D42: 30145 | E42: 0 | F42: 0 | G42: 0 | H42: 3
B43: Otros equipos de transmisión | D43: 30146 | E43: 162.3201 | F43: 16.33795121 | G43: 178.6580512 | H43: 3
B44: Otros Activos Fijos Brutos de Comunicaciones | D44: 3015 | E44: 46188.99832 | F44: 12631.29326 | G44: 58820.29158 | H44: 3
B45: Equipos de Fuerza (Planta Energía Eléctrica) | D45: 30151 | E45: 4981.34745 | F45: 332.6886962 | G45: 5314.036146 | H45: 3
B46: Sistemas de Gestión de Red | D46: 30152 | E46: 2743.66485 | F46: 260.0103712 | G46: 3003.675221 | H46: 3
B47: Equipos para Interconexión | D47: 30153 | E47: 0 | F47: 0 | G47: 0 | H47: 3
B48: Equipos para Circuitos Alquilados | D48: 30154 | E48: 0 | F48: 0 | G48: 0 | H48: 3
B49: Otros | D49: 30155 | E49: =38463.9860200001+444.739637779021+106.260362220979 -> 39014.98602 | F49: =12038.5941917127+379.114098655016+90.5806409506012 -> 12508.28893 | G49: 51523.27495 | H49: 3
B50: Terreno, Edificios, Planta y Equipos no de Telecomunicaciones | D50: 302 | E50: 32477.99659 | F50: -3655.492702 | G50: 28822.50389 | H50: 3
B51: Terrenos | D51: 3021 | E51: 9801.4004 | F51: -6573.275392 | G51: 3228.125008 | H51: 3
B52: Edificios | D52: 3022 | E52: 13035.81253 | F52: 2962.230288 | G52: 15998.04282 | H52: 3
B53: Vehículos y Ayudas Mecánicas | D53: 3023 | E53: 232.63535 | F53: 0 | G53: 232.63535 | H53: 3
B54: Equipos Sistemas Informáticos | D54: 3024 | E54: 4791.94821 | F54: 244.229378 | G54: 5036.177588 | H54: 3
B55: Edificios en arrendamiento financiero | D55: 3025 | E55: 0 | F55: 0 | G55: 0 | H55: 3
B56: Otros activos bajo la forma de arrendamiento o leasing | D56: 3026 | E56: 0 | F56: 0 | G56: 0 | H56: 3
B57: Otros Activos no de comunicaciones | D57: 3027 | E57: =4616.20009999992+0.674040743470192 -> 4616.874141 | F57: =-288.676976117212-0.674040743470192 -> -289.3510169 | G57: 4327.523124 | H57: 3
B58: Activos Intangibles | D58: 31 | E58: 63734.66474 | F58: 15770.53833 | G58: 79505.20307 | H58: 3
B59: Concesiones | D59: 311 | E59: =36383.80015-92.73848 -> 36291.06167 | F59: =14813.5739996257+2.61349975685496 -> 14816.1875 | G59: 51107.24917 | H59: 3
B60: Licencias | D60: 312 | E60: 228.7143 | F60: -16.66622786 | G60: 212.0480721 | H60: 3
B61: Patentes y propiedad intelectual | D61: 313 | E61: 0 | F61: 0 | G61: 0 | H61: 3
B62: Software | D62: 314 | E62: 13322.23582 | F62: -400.2288846 | G62: 12922.00694 | H62: 3
B63: Investigación y Desarrollo | D63: 315 | E63: 0 | F63: 0 | G63: 0 | H63: 3
B64: Otros Activos Intangibles | D64: 316 | E64: =13799.91447+5.86358999982849 -> 13805.77806 | F64: =1373.85943884446-5.86358999982849 -> 1367.995849 | G64: 15173.77391 | H64: 3
B65: Otros Activos No Corrientes | D65: 32 | E65: 40209.42894 | F65: -23884.83609 | G65: 16324.59285 | H65: 3
B66: Impuestos por recuperar a largo plazo | E66: 8421.72118 | F66: 0 | G66: 8421.72118
B67: Activo por impuesto a las ganancias diferido | E67: 9192.88553 | F67: 0 | G67: 9192.88553
B68: Desvalorización de activos fijos | E68: 0 | F68: 0 | G68: 0
B69: Desvalorización de activos intangibles | E69: 0 | F69: 0 | G69: 0
B70: Estimación de remoción | E70: 0 | F70: 0 | G70: 0
B71: Otros activos no corrientes no operativos - Activos fijos | E71: 0 | F71: 0 | G71: 0
B72: Otros activos no corrientes no operativos - Otros activos fijos | E72: 0 | F72: 0 | G72: 0
B73: Otros activos no corrientes no operativos - Otros activos intangibles | E73: 0 | F73: 0 | G73: 0
B75: Depreciación del Activo Fijo Bruto, y Amortización | D75: 34 | E75: -212352.5165 | F75: -37050.67556 | G75: =+E75+F75 -> -249403.1921 | H75: 3
B76: Depreciación de Planta y Equipo de Comunicaciones | D76: 341 | E76: -151316.4951 | F76: -20260.10793 | G76: -171576.6031 | H76: 3
B77: Equipos terminales | D77: 3411 | E77: -16293.58702 | F77: 336.59051 | G77: -15956.99651 | H77: 3
B78: Equipos terminales -Teléfonos de Abonados | D78: 34111 | E78: -3740.54907 | F78: 71.79362 | G78: -3668.75545 | H78: 3
B79: Equipos terminales -Teléfonos Públicos | D79: 34112 | E79: -77.05303 | F79: 0.30006 | G79: -76.75297 | H79: 3
B80: Equipos Terminales -Televisión de Paga | D80: 34113 | E80: 0 | F80: 0 | G80: 0 | H80: 3
B81: Equipos Terminales -Internet Fijo | D81: 34114 | E81: -10218.433 | F81: 186.03303 | G81: -10032.39997 | H81: 3
B82: Equipos Terminales -Telefonía Móvil | D82: 34115 | E82: 0 | F82: 0 | G82: 0 | H82: 3
B83: Equipos Terminales -Internet Móvil | D83: 34116 | E83: 0 | F83: 0 | G83: 0 | H83: 3
B84: Otros Equipos Terminales | D84: 34117 | E84: -2257.55192 | F84: 78.4638 | G84: -2179.08812 | H84: 3
B85: Planta y Equipo de Acceso Local | D85: 3412 | E85: -69487.9386 | F85: -5003.809501 | G85: -74491.7481 | H85: 3
B86: Equipos Centrales y de agregación | D86: 3413 | E86: -26488.39833 | F86: -2879.58663 | G86: -29367.98496 | H86: 3
B87: Centrales Locales | D87: 34131 | E87: -8164.43408 | F87: -1065.022641 | G87: -9229.456721 | H87: 3
B88: Centrales de Larga Distancia Nacional | D88: 34132 | E88: 0 | F88: 0 | G88: 0 | H88: 3
B89: Centrales de Larga Distancia Internacional | D89: 34133 | E89: -3621.64733 | F89: -438.6286303 | G89: -4060.27596 | H89: 3
B90: Controladores | D90: 34134 | E90: -62.42879 | F90: -5.917060173 | G90: -68.34585017 | H90: 3
B91: Gateways | D91: 34135 | E91: -7936.66633 | F91: -741.6986724 | G91: -8678.365002 | H91: 3
B92: Cabeceras | D92: 34136 | E92: 0 | F92: 0 | G92: 0 | H92: 3
B93: Transmisión de Datos (Servicio Final) | D93: 34137 | E93: -6703.2218 | F93: -628.3196264 | G93: -7331.541426 | H93: 3
B94: Otros equipos centrales | D94: 34138 | E94: 0 | F94: 0 | G94: 0 | H94: 3
B95: Transmisión (Gran capacidad) | D95: 3414 | E95: -8613.00688 | F95: -1015.507653 | G95: -9628.514533 | H95: 3
B96: Cables de Transmisión (excluidos internacional) | D96: 34141 | E96: -8267.86303 | F96: -994.5296318 | G96: -9262.392662 | H96: 3
B97: Equipos de Transmisión (excluidos internacional) | D97: 34142 | E97: -123.1275 | F97: -0.7580936252 | G97: -123.8855936 | H97: 3
B98: Equipos de Transmisión Radio | D98: 34143 | E98: -59.69625 | F98: -3.881976901 | G98: -63.5782269 | H98: 3
B99: Equipos de Transmisión por Satélite | D99: 34144 | E99: 0 | F99: 0 | G99: 0 | H99: 3
B100: Cables y Equipos internacionales (excluyendo satélite) | D100: 34145 | E100: 0 | F100: 0 | G100: 0 | H100: 3
B101: Otros equipos de transmisión | D101: 34146 | E101: -162.3201 | F101: -16.33795121 | G101: -178.6580512 | H101: 3
B102: Otros Activos Fijos Brutos de Comunicaciones | D102: 3415 | E102: -30433.56431 | F102: -11697.79466 | G102: -42131.35897 | H102: 3
B103: Equipos de Fuerza (Planta Energía Eléctrica) | D103: 34151 | E103: -2550.36436 | F103: -230.9214215 | G103: -2781.285782 | H103: 3
B104: Sistemas de Gestión de Red | D104: 34152 | E104: -2439.01163 | F104: -248.5329437 | G104: -2687.544574 | H104: 3
B105: Equipos para Interconexión | D105: 34153 | E105: 0 | F105: 0 | G105: 0 | H105: 3
B106: Equipos para Circuitos Alquilados | D106: 34154 | E106: 0 | F106: 0 | G106: 0 | H106: 3
B107: Otros | D107: 34155 | E107: -25444.18832 | F107: -11218.34029 | G107: -36662.52861 | H107: 3
B108: Depreciación de Edificios, y Planta y Equipos no de Telecomunicaciones | D108: 342 | E108: -15108.33379 | F108: -3123.767953 | G108: -18232.10174 | H108: 3
B109: Edificios | D109: 3421 | E109: -7805.24304 | F109: -2844.031905 | G109: -10649.27495 | H109: 3
B110: Vehículos y Ayudas Mecánicas | D110: 3422 | E110: -232.63535 | F110: 0 | G110: -232.63535 | H110: 3
B111: Equipos Sistemas Informáticos | D111: 3423 | E111: -4008.016169 | F111: -330.0949778 | G111: -4338.111147 | H111: 3
B112: Edificios en arrendamiento financiero | D112: 3424 | E112: 0 | F112: 0 | G112: 0 | H112: 3
B113: Otros activos bajo la forma de arrendamiento o leasing | D113: 3425 | E113: 0 | F113: 0 | G113: 0 | H113: 3
B114: Otros Activos no de comunicaciones | D114: 3426 | E114: -3062.439229 | F114: 50.35893 | G114: -3012.080299 | H114: 3
B115: Amortización de Intangibles | D115: 343 | E115: -45927.68756 | F115: -13666.79968 | G115: -59594.48724 | H115: 3
B116: Concesiones | D116: 3431 | E116: -25049.3436 | F116: -11766.54711 | G116: -36815.89071 | H116: 3
B117: Licencias | D117: 3432 | E117: -95.29775 | F117: -3.418619825 | G117: -98.71636983 | H117: 3
B118: Patentes y propiedad intelectual | D118: 3433 | E118: 0 | F118: 0 | G118: 0 | H118: 3
B119: Software | D119: 3434 | E119: -8544.03807 | F119: -337.5781252 | G119: -8881.616195 | H119: 3
B120: Investigación y Desarrollo | D120: 3435 | E120: 0 | F120: 0 | G120: 0 | H120: 3
B121: Otros Activos Intangibles | D121: 3436 | E121: -12239.00814 | F121: -1559.255829 | G121: -13798.26397 | H121: 3
B123: PASIVO CORRIENTE | E123: 49421 | F123: -192.36719 | G123: =+E123+F123 -> 49228.63281
B124: Cuentas por pagar comerciales | D124: 42 | E124: 33751 | F124: 0 | G124: 33751 | H124: 3
B125: Cuentas por pagar a entidades relacionadas | D125: 43 | E125: 10506.88021 | F125: 0 | G125: 10506.88021 | H125: 3
B126: Otras cuentas por pagar | D126: 46 | E126: 5163 | F126: -192.36719 | G126: 4970.63281 | H126: 3
B128: PASIVO NO CORRIENTE | E128: 92797 | F128: 0 | G128: =+E128+F128 -> 92797
B129: Cuentas por pagar a entidades relacionadas | D129: 43 | E129: 90887.31616 | F129: 0 | G129: 90887.31616
B130: Otras cuentas por pagar largo plazo | D130: 46 | E130: 1910 | F130: 0 | G130: 1910
B132: PATRIMONIO NETO | E132: 56825.5087 | F132: -25253.44155 | G132: =+E132+F132 -> 31572.06715
B133: Capital emitido | D133: 50 | E133: 129256.0534 | F133: 0 | G133: 129256.0534
B134: Resultados acumulados | D134: 59 | E134: -72430.54466 | F134: 0 | G134: -72430.54466
B135: Revaluaciones y Otros | D135: 58 | E135: 0 | F135: -25253.44155 | G135: -25253.44155
